Cogmind - Beta 16 @@@ ROGUE MODE // 2026.02.09 @ 09:33:46 Player: Zetadar Result: Destroyed by S-10 Pest with Light Assault Rifle Performance ------------- Evolutions (1) 500 Regions Visited (3) 600 Robots Destroyed (19) 95 Value Destroyed (407) 407 Prototype IDs (3) 60 Alien Tech Used (0) 0 Bonus (0) 0 TOTAL SCORE: 1662 Bonus ------- None Cogmind --------- Core Integrity 0/400 Matter 246/300 Energy 124/125 System Corruption 9% Temperature Cool (0) Movement Flying (32) Location -9/Materials Parts ------- > --- POWER (1) -------- Light Ion Engine > --- PROPULSION (2) --- Cesium-ion Thruster Cesium-ion Thruster > --- UTILITY (4) ------ Advanced Visual Processing Unit Targeting Computer > --- WEAPON (2) ------- Light Assault Rifle Rocket Launcher > --- INVENTORY (5) ---- Flight Unit Improved Flight Unit Cesium-ion Thruster Cesium-ion Thruster Heat Sink Peak State ------------ > --- POWER ------------ Light Ion Engine > --- PROPULSION ------- Cesium-ion Thruster Cesium-ion Thruster > --- UTILITY ---------- Advanced Visual Processing Unit Targeting Computer > --- WEAPON ----------- Light Assault Rifle Rocket Launcher > --- INVENTORY -------- Flight Unit Improved Flight Unit Cesium-ion Thruster Cesium-ion Thruster Heat Sink [Rating: 15] Favorites ----------- Power Light Ion Engine Engine Light Ion Engine Propulsion Wheel Leg Aluminum Leg Wheel Wheel Flight Unit Cesium-ion Thruster Utility Targeting Computer Device Weight Redist. System Storage Large Battery Processor Targeting Computer Protection Light Armor Plating Weapon Medium Laser Energy Gun Medium Laser Ballistic Gun Light Assault Rifle Ballistic Cannon Light Cannon Launcher Rocket Launcher Build | -11 -10 -10 -9 ------- Run | Yrd Mat Min Mat Slots Evolved 2 | . . . 2 Power . | . . . . Propulsion . | . . . . Utility 2 | . . . 2 Weapon . | . . . . Parts Attached 30 | 5 1 6 18 Power 4 | 1 . 1 2 Engine 4 | 1 . 1 2 Core . | . . . . Reactor . | . . . . Propulsion 9 | 2 . 1 6 Treads . | . . . . Leg 2 | . . . 2 Wheel 3 | 2 . 1 . Hover . | . . . . Flight 4 | . . . 4 Utility 8 | . 1 2 5 Device 3 | . . . 3 Storage 1 | . 1 . . Processor 3 | . . 2 1 Hackware . | . . . . Protection 1 | . . . 1 Artifact . | . . . . Weapon 9 | 2 . 2 5 Energy Gun 5 | 2 . . 3 Energy Cannon . | . . . . Ballistic Gun 2 | . . 1 1 Ballistic Cannon 1 | . . 1 . Launcher 1 | . . . 1 Special Weapon . | . . . . Impact Weapon . | . . . . Slashing Weapon . | . . . . Piercing Weapon . | . . . . Special Melee Weapon . | . . . . Unidentified Prototypes 1 | . . . 1 Parts Lost 17 | . . 5 12 Power 2 | . . 1 1 Propulsion 5 | . . 2 3 Utility 4 | . . . 4 Weapon 6 | . . 2 4 Highest Loss Streak 8 | . . 4 8 To Critical Strikes . | . . . . Average Backups 2 | 1 1 2 3 Power . | . 1 1 . Propulsion . | . . . 1 Utility . | . . . . Weapon . | . . . . Tool/Special . | . . . . Unused Backups 2 | . . . 2 Power . | . . . . Propulsion 2 | . . . 2 Utility . | . . . . Weapon . | . . . . Tool/Special . | . . . . Average Slot Usage (%) 76 | . 74 84 65 Engine 10 | . 14 12 7 Wheel 17 | . 28 22 4 Flight 1 | . . . 3 Device 2 | . . . 8 Storage 4 | . 3 2 7 Processor 17 | . . 22 17 Energy Gun 12 | . 28 10 8 Ballistic Gun 5 | . . 8 1 Ballistic Cannon 3 | . . 4 3 Peak Build Rating 15 | 5 6 7 15 Average Rating 6 | 3 5 5 7 On Entrance 4 | . 5 6 5 Avg Prop Armor Cover (%) . | . . . . Naked Turns . | . . . . Heaviest Build 10 | 7 10 10 9 Greatest Support 20 | 20 20 20 16 Greatest Overweight (x) 2 | . . 2 2 Average Overweight (x) . | . . . . Largest Inventory Capacity 5 | 5 5 5 5 Average Capacity 5 | 5 5 5 5 Most Carried 5 | 4 3 3 5 Average Carried 2 | 1 1 2 3 Final Capacity 5 | 5 5 5 5 Final Carried 5 | 1 2 2 5 Class Distribution -------------------- 94% | Mutant 5% | Scavenger-Mutant Dominant Class ---------------- Mutant | -10/Materials Mutant | -10/Mines Mutant | -9/Materials Resources | -11 -10 -10 -9 ----------- Run | Yrd Mat Min Mat Matter Collected 526 | 203 . 102 221 Remotely . | . . . . Salvage Created 536 | . . 149 387 Parts 42 | . . 12 30 Haulers Intercepted . | . . . . Recyclers Shooed 1 | . . . 1 Parts Field Recycled . | . . . . Retrieved Matter . | . . . . Parts Self-Destructed . | . . . . Prevented . | . . . . Parts Restored . | . . . . Kills | -11 -10 -10 -9 ------- Run | Yrd Mat Min Mat Combat Hostiles Destroyed 18 | . . 5 13 Guns 16 | . . 4 12 Cannons 2 | . . 1 1 Classes Destroyed 6 | . . 4 2 Worker 1 | . . . 1 Builder 1 | . . 1 . Swarmer 8 | . . 2 6 Grunt 8 | . . 2 6 Brawler 1 | . . . 1 Assembled 1 | . . 1 . Best Kill Streak 7 | . . 4 7 Combat Bots Only 6 | . . 4 6 Max Kills in Single Turn 2 | . . 2 1 Gunslinging 1 | . . 1 . Exploded . | . . . . Melee . | . . . . Uniques/NPCs Destroyed . | . . . . Combat | -11 -10 -10 -9 -------- Run | Yrd Mat Min Mat Hostile Shots Fired 192 | . . 60 132 Missed 56 | . . 14 42 Hits 136 | . . 46 90 Melee 3 | . . . 3 Projectile 133 | . . 46 87 AOE 4 | . . 3 1 Damage Taken 1627 | . . 625 1002 Core 616 | . . 209 407 Absorbed by Shields . | . . . . Core Remaining (%) 58 | 100 . 16 . Volleys Fired 88 | . . 31 57 Largest 2 | . . 2 2 Hottest 100 | . . 100 80 Shots Fired 115 | . . 43 72 Gun 96 | . . 29 67 Cannon 19 | . . 14 5 Launcher . | . . . . Special . | . . . . Kinetic 42 | . . 29 13 Thermal 73 | . . 14 59 Explosive . | . . . . Electromagnetic . | . . . . Robot Hit Streak 11 | . . 6 11 Robot Miss Streak 3 | . . 3 3 Penetration Max . | . . . . Secondary Targets 3 | . . 1 2 Max Gunslinging Chain 1 | . . 1 1 Shots Hit Robots 76 | . . 23 53 Core Hits 35 | . . 12 23 Critical Kills . | . . . . Critical Parts Destroyed . | . . . . Critical Strikes . | . . . . Melee Attacks . | . . . . Impact . | . . . . Slashing . | . . . . Piercing . | . . . . Sneak Attacks . | . . . . Combat Hostiles . | . . . . Follow-up Attacks . | . . . . Damage Inflicted 876 | . . 270 606 Guns 728 | . . 176 552 Cannons 148 | . . 94 54 Explosions . | . . . . Melee . | . . . . Ramming . | . . . . Kinetic 262 | . . 170 92 Thermal 614 | . . 100 514 Explosive . | . . . . Electromagnetic . | . . . . Impact . | . . . . Slashing . | . . . . Piercing . | . . . . Highest Corruption 9 | . . . 9 Average Corruption 8 | . . . 8 Corruption Purged . | . . . . Corruption Blocked . | . . . . Effects 6 | . . . 6 Message Errors 1 | . . . 1 Matter Fused 2 | . . . 2 Heat Flow Errors 1 | . . . 1 Energy Discharges 1 | . . . 1 Parts Rejected 1 | . . . 1 Overload Shots . | . . . . Overflow Damage 4 | . . 4 . Projectiles 4 | . . 4 . Explosions . | . . . . Melee . | . . . . Knockbacks 2 | . . 1 1 Impact . | . . . . Kinetic 2 | . . 1 1 Secondary . | . . . . Self-Inflicted Damage . | . . . . Shots . | . . . . Rammed . | . . . . Targets Rammed . | . . . . Kicked . | . . . . Crushed . | . . . . Highest Temperature 258 | . . 258 224 Average Temperature 75 | . . 84 63 Received Heat Transfer 422 | . . 248 174 Effects 1 | . . 1 . Interference 1 | . . 1 . Siege Activations . | . . . . Martial Activations . | . . . . Shielding Activations . | . . . . Robots Disrupted . | . . . . Combat Hostiles . | . . . . Robots Corrupted . | . . . . Combat Hostiles . | . . . . Parts Fried . | . . . . Impact Corruptions . | . . . . Robots Melted . | . . . . Combat Hostiles . | . . . . Parts Melted 5 | . . . 5 Heat Transferred 1471 | . . 296 1175 Parts Sabotaged . | . . . . Parts Stolen . | . . . . Parts Stripped . | . . . . Power Chain Reactions . | . . . . Alert | -11 -10 -10 -9 ------- Run | Yrd Mat Min Mat Maximum Alert Level 1 | . . . 1 Low Security (%) 89 | 100 100 100 66 Level 1 10 | . . . 33 Level 2 . | . . . . Level 3 . | . . . . Level 4 . | . . . . Level 5 . | . . . . High Security . | . . . . Max Security . | . . . . Peak Influence 245 | . 2 115 245 Initial . | . . . . Average 60 | . . 40 125 Influence Increases 629 | . 12 155 462 Destroy 0b10 Robot/C 340 | . . 80 260 Destroy 0b10 Robot/NC 10 | . . 5 5 Destroy Leader 70 | . . 10 60 Successful Hack 14 | . 12 . 2 Partial Spotted 15 | . . . 15 Lose Combat Pursuer 180 | . . 60 120 Influence Decreases 409 | . 12 155 242 Time Decay 277 | . 10 145 122 Lost Part 130 | . . 10 120 Purge Threat 2 | . 2 . . Squads Dispatched 3 | . . . 3 Investigation 2 | . . . 2 Extermination . | . . . . Reinforcement 1 | . . . 1 Assault . | . . . . Garrison . | . . . . Intercept . | . . . . Searches Triggered . | . . . . Construction Impeded . | . . . . Haulers Reinforced . | . . . . Active Scanning Responses . | . . . . Cargo Convoy Interrupts . | . . . . Stealth | -11 -10 -10 -9 --------- Run | Yrd Mat Min Mat Distress Signals . | . . . . Communications Jammed . | . . . . Distress Signals . | . . . . Times Spotted 40 | . 2 14 24 Peak Tracking Total 5 | . 3 5 5 Tactical Retreats 9 | . . 4 5 Traps | -11 -10 -10 -9 ------- Run | Yrd Mat Min Mat Traps Triggered 1 | . . . 1 Indirectly . | . . . . Trap Hack Attempts . | . . . . Triggered . | . . . . Disarmed . | . . . . Reprogrammed . | . . . . Reused . | . . . . Traps Extracted . | . . . . Installed . | . . . . Triggered . | . . . . Machines | -11 -10 -10 -9 ---------- Run | Yrd Mat Min Mat Machines Disabled . | . . . . Max in Single Turn . | . . . . Machines Repaired . | . . . . Machines Dismantled . | . . . . Machines Sabotaged . | . . . . Overloaded Fab Kills . | . . . . Hacking | -11 -10 -10 -9 --------- Run | Yrd Mat Min Mat Machines Accessed 6 | . 3 . 3 Terminals 4 | . 2 . 2 Fabricators . | . . . . Repair Stations . | . . . . Recycling Units 1 | . 1 . . Scanalyzers 1 | . . . 1 Garrison Access . | . . . . Total Hacks 13 | . 6 . 7 Successful 5 | . 4 . 1 Failed 8 | . 2 . 6 Catastrophic 1 | . . . 1 Database Lockouts . | . . . . Manual 5 | . . . 5 Terminals 11 | . 5 . 6 Fabricators . | . . . . Repair Stations . | . . . . Recycling Units 1 | . 1 . . Scanalyzers 1 | . . . 1 Garrison Access . | . . . . Terminal Hacks 3 | . 3 . . Prototype ID Bank 1 | . 1 . . Unreport Threat 1 | . 1 . . Registered Components 1 | . 1 . . Fabricator Hacks . | . . . . Repair Station Hacks . | . . . . Recycling Unit Hacks 1 | . 1 . . Report Inventory 1 | . 1 . . Scanalyzer 1 | . . . 1 Retrieve Study 1 | . . . 1 Garrison Access Hacks . | . . . . Unauthorized Hacks . | . . . . Terminals . | . . . . Fabricators . | . . . . Repair Stations . | . . . . Recycling Units . | . . . . Scanalyzers . | . . . . Garrison Access . | . . . . Data Cores Recovered . | . . . . Used . | . . . . Hacking Detections 4 | . 2 . 2 Full Trace Events 1 | . . . 1 Feedback Events 1 | . . . 1 Corruption 1 | . . . 1 Feedback Blocked . | . . . . Robot Schematics Acquired . | . . . . Robots Built . | . . . . Authchips . | . . . . Time . | . . . . Total Robot Build Rating . | . . . . Part Schematics Acquired . | . . . . Parts Built . | . . . . Authchips . | . . . . Time . | . . . . Total Part Build Rating . | . . . . Part Studies Acquired 1 | . . . 1 Parts Repaired . | . . . . Time . | . . . . Parts Recycled . | . . . . Recycled Matter . | . . . . Retrieved Matter . | . . . . Retrieved Components . | . . . . Parts Scanalyzed . | . . . . Part Schematics Acquired . | . . . . Parts Damaged . | . . . . Bothacking | -11 -10 -10 -9 ------------ Run | Yrd Mat Min Mat Used RIF Installer . | . . . . Robots Hacked . | . . . . Non-combat . | . . . . Combat . | . . . . Robot Hacks Applied . | . . . . Relay Couplers Released . | . . . . Fabnet Peak Effective % . | . . . . Robots Rewired . | . . . . Allies Hacked . | . . . . Hacks Repelled . | . . . . Allies | -11 -10 -10 -9 -------- Run | Yrd Mat Min Mat Total Allies . | . . . . Largest Group . | . . . . Highest-Rated Group . | . . . . Highest-Rated Ally . | . . . . Total Orders . | . . . . Ally Attacks . | . . . . Total Damage . | . . . . Kills . | . . . . Allies Corrupted . | . . . . Allies Melted . | . . . . Intel | -11 -10 -10 -9 ------- Run | Yrd Mat Min Mat Active Infowar (turns) 27 | . . . 27 Optics 27 | . . . 27 Robot Analysis Total . | . . . . Derelict Logs Recovered 2 | . . 2 . Drone Launches . | . . . . Drone Recoveries . | . . . . Exploration | -11 -10 -10 -9 ------------- Run | Yrd Mat Min Mat Turns Passed 942 | 40 128 472 302 Spaces Moved 854 | 40 157 452 205 Core 62 | 10 . 31 21 Treads . | . . . . Legs 10 | . . . 10 Wheels 706 | 30 157 421 98 Hover . | . . . . Flight 76 | . . . 76 Fastest Speed 32 | 50 80 50 32 Average Speed 75 | 72 80 78 64 Slowest Speed 150 | 80 80 150 150 Overloaded Moves . | . . . . Propulsion Burnouts . | . . . . Robots Hopped . | . . . . Potential Cave-ins . | . . . . Cave-ins Triggered . | . . . . Exploration Rate (%) 34 | 4 36 74 22 Regions Visited 3 Branch Regions 1 Pre-discovered Areas . | . . . . Known Exits Taken 1 | . . 1 . Unknown Exits Taken 2 | 1 1 . . Scrap Searched 1 | . . 1 . Spaces Dug . | . . . . Terrain Destroyed . | . . . . Melee . | . . . . Projectile . | . . . . AOE . | . . . . Terrain Rammed . | . . . . Walls Destroyed . | . . . . Machines Disabled . | . . . . Actions | -11 -10 -10 -9 --------- Run | Yrd Mat Min Mat Total 1039 | 50 159 527 303 Wait 35 | . . 33 2 Move 851 | 39 156 451 205 Hop . | . . . . Pick Up 30 | 6 2 5 17 Fast Attach 2 | . . . 2 Attach 25 | 5 1 5 14 Detach . | . . . . Swap 6 | . . 1 5 Drop 2 | . . 1 1 Fire 88 | . . 31 57 Melee . | . . . . Ram . | . . . . Kick . | . . . . Crush . | . . . . Escape Stasis . | . . . . Rewire . | . . . . Trap . | . . . . Miscellaneous . | . . . . Route ------- -11/Scrapyard -10/Materials -10/Mines -9/Materials (discovered 1 exit: [*Mat]) History --------- Turn | Location | Event 15 | -11/Scrapyard | Discovered new exit (range 16) 41 | -11/Scrapyard | Entered Materials 125 | -10/Materials | Discovered new exit (range 14) 169 | -10/Materials | Entered Mines 236 | -10/Mines | Met a Derelict bent on vengeance 306 | -10/Mines | Build established: Mutant 370 | -10/Mines | Assembled infested the area 375 | -10/Mines | Assisted by a Guerilla fighting off Assembled 467 | -10/Mines | Discovered new exit (range 4) 469 | -10/Mines | Identified exit to Materials 509 | -10/Mines | Core integrity fell below 50% 538 | -10/Mines | Core integrity fell below 20% 562 | -10/Mines | Lost 4 parts (1p2n1w) 641 | -10/Mines | Entered Materials 641 | -9/Materials | Evolved 2 slots: Utility x2 811 | -9/Materials | Lost 4 parts (1p1n1u1w) 855 | -9/Materials | Core integrity fell below 50% 891 | -9/Materials | Core integrity fell below 20% 904 | -9/Materials | Discovered new exit (range 8) 924 | -9/Materials | Lost 8 parts (2n3u3w) 943 | -9/Materials | Destroyed by S-10 Pest with Light Assault Rifle Last Messages --------------- Sml. Laser destroyed. Lgt. Cannon destroyed. System corrupted: Matter fused (-5). Lrg. Battery destroyed. Acquired 5 matter. Acquired Lgt. Assault Rifle. Heat Sink destroyed. S-10 Pest destroyed. Acquired 12 matter. K-01 Serf collects debris. Acquired 17 matter. Acquired Flight Unit. EXIT=FOUND K-01 Serf collects debris. Acquired Cesium-ion Thruster. Acquired Adv. Visual Processing Unit. Connecting with Terminal... K-01 Serf collects debris. U-05 Engineer builds a Wall. Acquired Rocket Launcher. Map ----- +----------------------------------------------------+ | | | | | | | | | | | | | | | | | ??????????????????????????? | | ??????????????????????????? | | ??????????????????????????? | | ??????????????????????????? | | ??????????????????????????? | | ??????????????????????????? | | ########??????????????????? | | #??????????????????? | | #??????????????????? | | #??????????????????? | | #????????????####### | | #????????##### # | | " #????????# # """ # | | ![ #????????# < # "R # | | *%%%* ########## # """ # | | ##+#####* s "" # | | # * ! * [= # # | | # = %= # @# | | ^ = ####### | | ^ !!#?? | | ######### !!#?? | | ????????# #?? | | ????????# #?? | | ????????# """ !#?? | | ????????# """"" !!#?? | | ????????# """"" #####?? | | ????????# """"" #?????? | | ????????# """ #?????? | | ????????# #?????? | | ????????# #?????? | | ????????# """ #?????? | | ????????# """"" #?????? | | ????????# """"" ##????? | | #####+### """"" #????? | | """ #????? | | #????? | | #????? | | ############+### #????? | | ????????# T #######????? | | ????????# #??????????? | | ????????#""" ! #??????????? | | ????????#""" #??????????? | +----------------------------------------------------+ Best States ------------- Heat Dissipation 38 Energy Generation 10 Energy Capacity 325 Matter Stores 300 Matter Capacity 300 Sight Range 20 Terrain Scan Density 10 Additional Mass Support 6 Armor Coverage 150 Evasion (%) 63 Targeting Accuracy 5 Item Schematics ----------------- None Robot Schematics ------------------ None Fabricated ------------ Nothing Repaired ---------- Nothing Studied --------- Wheel | -9/Materials | Hacked Alien Tech Used ----------------- None Achievements -------------- Everything Is Under Control I Survived The Infestation Challenges ------------ None Game ------ Seed BiomechanicalNeutrinoChip Manual? 0 Play Time 00:23:04 Cumulative 4.3 hours Start 2026.02.09 @ 09:11:34 End 2026.02.09 @ 09:33:46 Sessions 1 Manual Loads 0 Difficulty Rogue Special Mode None Game No. 6 Rogue 6 Adventurer 0 Explorer 0 Win Type - Total 0 Types 0/0/0/0/0/0/0/0/0/0 Lore% 3 Gallery% 7 Achievement% 7 Wizard Run 0 Options --------- Layout 0 ASCII 0 Keyboard 0 Movement Mouse Keybinds 0 Fullscreen 2 Font 18/SmallcapsGlow Map View 76x50 Zoom Use 0% Tactical HUD 0 Map Filters NONE Filters NONE Steam 1 RUN: ceec6cd4-5be4-4cb8-b7ec-bbbca30f305c